[Event "RUS-ch Men Blitz 2019"]
[Site "Sochi"]
[Date "2019.10.17"]
[Round "14.2"]
[White "Shimanov, Aleksandr"]
[Black "Popov, Valerij"]
[Result "1-0"]
[ECO "C24"]
[WhiteElo "2587"]
[BlackElo "2535"]
[Annotator "ChessBase"]
[PlyCount "118"]
[EventDate "2019.10.17"]
[EventType "swiss"]
[EventCountry "RUS"]
[SourceTitle "playchess.com"]
[Source "ChessBase"]
[SourceQuality "1"]
[TimeControl "180+2"]

1. e4 {[%emt 0:00:00]} e5 {[%emt 0:00:02]} 2. Bc4 {[%emt 0:00:01]} Nf6 {[%emt 0:00:02]} 3. d3 {[%emt 0:00:01]} c6 {[%emt 0:00:01]} 4. Nf3 {[%emt 0:00:02]} d5 {[%emt 0:00:00]} 5. Bb3 {[%emt 0:00:01]} Bd6 {[%emt 0:00:01]} 6. Nc3 {[%emt 0:00:02]} d4 {[%emt 0:00:03]} 7. Ne2 {[%emt 0:00:02]} c5 {[%emt 0:00:08]} 8. O-O {[%emt 0:00:03]} O-O {[%emt 0:00:01]} 9. Bg5 {[%emt 0:00:08]} h6 {[%emt 0:00:12]} 10. Bd2 {[%emt 0:00:02]} Nc6 {[%emt 0:00:04]} 11. Ng3 {[%emt 0:00:04]} a6 {[%emt 0:00:07]} 12. Nh4 {[%emt 0:00:10]} Ne7 {[%emt 0:00:56]} 13. Qc1 {[%emt 0:00:04]} Kh7 {[%emt 0:00:06]} 14. f4 {[%emt 0:00:04]} exf4 {[%emt 0:00:08]} 15. Bxf4 {[%emt 0:00:01]} Ng4 {[%emt 0:00:37]} 16. Bd2 {[%emt 0:01:23]} Ng6 {[%emt 0:00:18]} 17. Nf3 {[%emt 0:00:14]} Qc7 {[%emt 0:00:12]} 18. Qe1 {[%emt 0:00:02]} Be6 {[%emt 0:00:04]} 19. Bxe6 {[%emt 0:00:29]} fxe6 {[%emt 0:00:01]} 20. e5 {[%emt 0:00:12]} N4xe5 {[%emt 0:00:10]} 21. Nxe5 {[%emt 0:00:16]} Bxe5 {[%emt 0:00:00]} 22. Rxf8 {[%emt 0:00:05]} Rxf8 {[%emt 0:00:14]} 23. Nf1 {[%emt 0:00:01]} Qc6 {[%emt 0:00:04]} 24. Qe2 {[%emt 0:00:03]} Bb8 {[%emt 0:00:02]} 25. Re1 {[%emt 0:00:03]} Rf6 {[%emt 0:00:00]} 26. Qe4 {[%emt 0:00:05]} Qxe4 {[%emt 0:00:02]} 27. Rxe4 {[%emt 0:00:01]} b6 {[%emt 0:00:04]} 28. a4 {[%emt 0:00:05]} a5 {[%emt 0:00:02]} 29. Be1 {[%emt 0:00:01]} Ne7 {[%emt 0:00:05]} 30. Nd2 {[%emt 0:00:02]} Nd5 {[%emt 0:00:02]} 31. Nc4 {[%emt 0:00:01]} Kg8 {[%emt 0:00:02]} 32. g3 {[%emt 0:00:02]} Kf7 {[%emt 0:00:01]} 33. Bd2 {[%emt 0:00:02]} Bc7 {[%emt 0:00:01]} 34. Kg2 {[%emt 0:00:01]} Ke7 {[%emt 0:00:02]} 35. Re2 {[%emt 0:00:01]} Kd7 {[%emt 0:00:01]} 36. Re4 Kc6 37. Re2 {[%emt 0:00:03]} Kd7 {[%emt 0:00:02]} 38. Re4 {[%emt 0:00:01]} Rf5 {[%emt 0:00:02]} 39. Rg4 {[%emt 0:00:02]} g5 {[%emt 0:00:02]} 40. h4 {[%emt 0:00:01]} Nf6 {[%emt 0:00:02]} 41. Kh3 {[%emt 0:00:08]} Nxg4 {[%emt 0:00:02]} 42. Kxg4 {[%emt 0:00:01]} gxh4 {[%emt 0:00:02]} 43. Bf4 {[%emt 0:00:04]} Bxf4 {[%emt 0:00:05]} 44. gxf4 h3 45. Kxh3 {[%emt 0:00:03]} Rxf4 {[%emt 0:00:02]} 46. Nxb6+ {[%emt 0:00:01]} Ke7 {[%emt 0:00:05]} 47. Nc4 {[%emt 0:00:02]} Rf2 {[%emt 0:00:00]} 48. Na3 {[%emt 0:00:01]} Kf6 {[%emt 0:00:03]} 49. Kg3 {[%emt 0:00:00]} Rd2 {[%emt 0:00:01]} 50. Kg4 {[%emt 0:00:03]} Kg6 {[%emt 0:00:01]} 51. Nc4 {[%emt 0:00:02]} Rxc2 {[%emt 0:00:01]} 52. b3 {[%emt 0:00:01]} h5+ {[%emt 0:00:03]} 53. Kh4 {[%emt 0:00:01]} Rc3 {[%emt 0:00:05]} 54. Nxa5 {[%emt 0:00:03]} Rxd3 {[%emt 0:00:00]} 55. Nb7 {[%emt 0:00:01]} Rxb3 {[%emt 0:00:02]} 56. Nxc5 {[%emt 0:00:01]} Ra3 {[%emt 0:00:03]} 57. Nxe6 {[%emt 0:00:04]} d3 {[%emt 0:00:01]} 58. Nf4+ {[%emt 0:00:04]} Kf5 {[%emt 0:00:00]} 59. Nd5 {[%emt 0:00:02]} d2 {[%emt 0:00:03]} 1-0

[Event "RUS-ch Men Blitz 2019"]
[Site "Sochi"]
[Date "2019.10.17"]
[Round "14.4"]
[White "Savitskiy, Sergey"]
[Black "Drygalov, Andrey"]
[Result "1-0"]
[ECO "B43"]
[WhiteElo "2407"]
[BlackElo "2484"]
[Annotator "RC"]
[PlyCount "87"]
[EventDate "2019.10.17"]
[EventType "swiss"]
[EventCountry "RUS"]
[SourceTitle "playchess.com"]
[Source "ChessBase"]
[SourceQuality "1"]
[TimeControl "180+2"]

1. e4 {[%emt 0:00:00]} c5 {[%emt 0:00:00]} 2. Nf3 e6 3. d4 {[%emt 0:00:00]} cxd4 {[%emt 0:00:00]} 4. Nxd4 {[%emt 0:00:01]} a6 {[%emt 0:00:00]} 5. Nc3 {[%emt 0:00:01]} Qc7 {[%emt 0:00:01]} 6. g3 {[%emt 0:00:00]} Bb4 {[%emt 0:00:02]} 7. Bd2 {[%emt 0:00:08]} Nf6 {[%emt 0:00:03]} 8. Bg2 {[%emt 0:00:02]} Nc6 {[%emt 0:00:17]} 9. Nxc6 {[%emt 0:00:02]} dxc6 {[%emt 0:00:04]} 10. O-O {[%emt 0:00:08]} Be7 {[%emt 0:00:05]} 11. e5 {[%emt 0:00:13]} Qxe5 {[%emt 0:00:16]} 12. Re1 {[%emt 0:00:01]} Qc7 {[%emt 0:00:06]} 13. Bf4 {[%emt 0:00:04]} Qd8 {[%emt 0:00:22]} 14. Qf3 {[%emt 0:00:12]} O-O {[%emt 0:00:08]} 15. Rad1 {[%emt 0:00:21]} Nd5 {[%emt 0:00:18]} 16. Ne4 {[%emt 0:00:07]} Qb6 {[%emt 0:00:07]} 17. Bc1 {[%emt 0:00:05]} f5 {[%emt 0:00:17]} 18. Ng5 {[%emt 0:00:11]} Bxg5 {[%emt 0:00:30]} 19. Bxg5 {[%emt 0:00:01]} Qxb2 {[%emt 0:00:02]} 20. c4 {[%emt 0:00:34]} Nf6 {[%emt 0:00:01]} 21. Bf4 {[%emt 0:00:00]} Ne4 {[%emt 0:00:09]} 22. Bc1 {[%emt 0:01:01]} Qxa2 {[%emt 0:00:32]} 23. Qf4 {[%emt 0:00:11]} g5 {[%emt 0:00:17]} 24. Qe3 {[%emt 0:00:04]} h6 {[%emt 0:00:04]} 25. h4 {[%emt 0:00:11]} Qxc4 {[%emt 0:00:01]} 26. Rd4 {[%emt 0:00:05]} Qc3 {[%emt 0:00:02]} 27. Rxe4 {[%emt 0:00:02]} Qxe3 {[%emt 0:00:03]} 28. R4xe3 {[%emt 0:00:00]} Kg7 {[%emt 0:00:02]} 29. Rd3 {[%emt 0:00:04]} Kg6 {[%emt 0:00:03]} 30. hxg5 {[%emt 0:00:01]} hxg5 {[%emt 0:00:01]} 31. Rd6 {[%emt 0:00:02]} a5 {[%emt 0:00:01]} 32. Ba3 {[%emt 0:00:01]} Re8 {[%emt 0:00:01]} 33. f4 {[%emt 0:00:03]} a4 {[%emt 0:00:04]} 34. Bf1 {[%emt 0:00:01]} Ra5 {[%emt 0:00:02]} 35. Bc4 {[%emt 0:00:03]} gxf4 {[%emt 0:00:01]} 36. gxf4 {[%emt 0:00:01]} Kf7 {[%emt 0:00:03]} 37. Bb4 {[%emt 0:00:03]} Ra8 {[%emt 0:00:01]} 38. Ba3 {[%emt 0:00:01]} Ra5 {[%emt 0:00:00]} 39. Kf2 {[%emt 0:00:01]} b5 {[%emt 0:00:04]} 40. Ba2 {[%emt 0:00:01]} Ra7 {[%emt 0:00:04]} 41. Rh1 {[%emt 0:00:03]} Kg6 {[%emt 0:00:02]} 42. Rd3 {[%emt 0:00:03]} e5 {[%emt 0:00:04]} 43. Rg3+ Kf6 44. Rh6# {[%emt 0:00:03]} 1-0

[Event "RUS-ch Men Blitz 2019"]
[Site "Sochi"]
[Date "2019.10.17"]
[Round "14.5"]
[White "Lysyj, Igor"]
[Black "Savchenko, Boris"]
[Result "1/2-1/2"]
[ECO "D85"]
[WhiteElo "2596"]
[BlackElo "2581"]
[Annotator "ChessBase"]
[PlyCount "138"]
[EventDate "2019.10.17"]
[EventType "swiss"]
[EventCountry "RUS"]
[SourceTitle "playchess.com"]
[Source "ChessBase"]
[SourceQuality "1"]
[TimeControl "180+2"]

1. d4 {[%emt 0:00:00]} Nf6 {[%emt 0:00:00]} 2. c4 {[%emt 0:00:00]} g6 {[%emt 0:00:00]} 3. Nc3 {[%emt 0:00:01]} d5 {[%emt 0:00:00]} 4. cxd5 {[%emt 0:00:04]} Nxd5 {[%emt 0:00:02]} 5. e4 {[%emt 0:00:01]} Nxc3 {[%emt 0:00:00]} 6. bxc3 {[%emt 0:00:02]} Bg7 {[%emt 0:00:02]} 7. Bg5 {[%emt 0:00:01]} c5 {[%emt 0:00:01]} 8. Rc1 {[%emt 0:00:01]} Qa5 {[%emt 0:00:07]} 9. Qd2 {[%emt 0:00:02]} h6 {[%emt 0:00:08]} 10. Be3 {[%emt 0:00:01]} cxd4 {[%emt 0:00:14]} 11. cxd4 {[%emt 0:00:02]} Nc6 {[%emt 0:00:01]} 12. Qxa5 {[%emt 0:00:53]} Nxa5 {[%emt 0:00:02]} 13. Nf3 {[%emt 0:00:02]} b6 {[%emt 0:00:25]} 14. Bb5+ {[%emt 0:00:12]} Bd7 {[%emt 0:00:06]} 15. Ba6 {[%emt 0:00:00]} O-O {[%emt 0:00:08]} 16. O-O {[%emt 0:00:20]} Bc8 {[%emt 0:00:12]} 17. Bd3 {[%emt 0:00:05]} Rd8 {[%emt 0:00:16]} 18. Rc7 {[%emt 0:00:12]} Bg4 {[%emt 0:00:05]} 19. d5 {[%emt 0:00:31]} e6 {[%emt 0:00:01]} 20. Rfc1 {[%emt 0:00:10]} exd5 {[%emt 0:00:11]} 21. exd5 {[%emt 0:00:01]} Rac8 {[%emt 0:00:04]} 22. Rxc8 {[%emt 0:00:08]} Rxc8 {[%emt 0:00:02]} 23. Rxc8+ {[%emt 0:00:07]} Bxc8 {[%emt 0:00:02]} 24. Nd4 {[%emt 0:00:10]} Kf8 {[%emt 0:00:28]} 25. Nb5 {[%emt 0:00:12]} Ba6 {[%emt 0:00:02]} 26. Bf4 {[%emt 0:00:07]} Ke7 {[%emt 0:00:19]} 27. Kf1 {[%emt 0:00:02]} Nb7 {[%emt 0:00:05]} 28. Be2 {[%emt 0:00:08]} Bxb5 {[%emt 0:00:12]} 29. Bxb5 {[%emt 0:00:01]} Nd6 {[%emt 0:00:01]} 30. Bd3 {[%emt 0:00:03]} h5 {[%emt 0:00:05]} 31. Ke2 {[%emt 0:00:03]} Bd4 {[%emt 0:00:01]} 32. a4 {[%emt 0:00:03]} Nb7 {[%emt 0:00:02]} 33. Bb8 {[%emt 0:00:04]} a5 {[%emt 0:00:04]} 34. Bf4 {[%emt 0:00:03]} Bc5 {[%emt 0:00:04]} 35. f3 {[%emt 0:00:03]} Bd6 {[%emt 0:00:02]} 36. Bg5+ {[%emt 0:00:01]} Ke8 {[%emt 0:00:03]} 37. Bb5+ {[%emt 0:00:02]} Kf8 {[%emt 0:00:01]} 38. g3 {[%emt 0:00:02]} Be7 {[%emt 0:00:02]} 39. Be3 {[%emt 0:00:02]} Bc5 {[%emt 0:00:01]} 40. Bg5 {[%emt 0:00:02]} Be7 {[%emt 0:00:01]} 41. Bh6+ {[%emt 0:00:01]} Kg8 {[%emt 0:00:01]} 42. Be3 {[%emt 0:00:02]} Bc5 {[%emt 0:00:01]} 43. Bg5 {[%emt 0:00:03]} Kf8 {[%emt 0:00:02]} 44. g4 {[%emt 0:00:02]} Nd6 {[%emt 0:00:05]} 45. Bc6 {[%emt 0:00:03]} hxg4 {[%emt 0:00:03]} 46. fxg4 {[%emt 0:00:01]} Ne4 {[%emt 0:00:01]} 47. Bc1 {[%emt 0:00:05]} Be7 {[%emt 0:00:07]} 48. h3 {[%emt 0:00:03]} f6 {[%emt 0:00:06]} 49. Bh6+ {[%emt 0:00:03]} Kf7 {[%emt 0:00:01]} 50. Bc1 {[%emt 0:00:03]} g5 {[%emt 0:00:04]} 51. Kf3 {[%emt 0:00:03]} Nc5 {[%emt 0:00:03]} 52. Be3 {[%emt 0:00:02]} Bd6 {[%emt 0:00:00]} 53. Bd4 {[%emt 0:00:01]} Ke7 {[%emt 0:00:01]} 54. Bf2 {[%emt 0:00:02]} Be5 {[%emt 0:00:01]} 55. h4 {[%emt 0:00:03]} gxh4 {[%emt 0:00:03]} 56. Bxh4 {[%emt 0:00:01]} Kd6 {[%emt 0:00:03]} 57. Bf2 {[%emt 0:00:02]} Kc7 {[%emt 0:00:02]} 58. Be3 {[%emt 0:00:02]} Kd6 {[%emt 0:00:01]} 59. Bf2 {[%emt 0:00:01]} Kc7 {[%emt 0:00:01]} 60. Be3 {[%emt 0:00:01]} Kd6 {[%emt 0:00:01]} 61. Ke2 {[%emt 0:00:06]} Kc7 {[%emt 0:00:03]} 62. g5 {[%emt 0:00:03]} fxg5 {[%emt 0:00:02]} 63. Bxg5 {[%emt 0:00:01]} Kd6 {[%emt 0:00:04]} 64. Bd8 {[%emt 0:00:01]} Nxa4 {[%emt 0:00:06]} 65. Bxa4 {[%emt 0:00:04]} Kxd5 {[%emt 0:00:01]} 66. Bxb6 {[%emt 0:00:01]} Ke6 {[%emt 0:00:02]} 67. Bxa5 {[%emt 0:00:02]} Kf6 {[%emt 0:00:00]} 68. Kd3 {[%emt 0:00:01]} Kg7 {[%emt 0:00:01]} 69. Ke4 {[%emt 0:00:00]} Ba1 {[%emt 0:00:01]} 1/2-1/2

[Event "RUS-ch Men Blitz 2019"]
[Site "Sochi"]
[Date "2019.10.17"]
[Round "14.8"]
[White "Triapishko, Alexandr"]
[Black "Timofeev, Artyom"]
[Result "0-1"]
[ECO "A04"]
[WhiteElo "2514"]
[BlackElo "2595"]
[Annotator "ChessBase"]
[PlyCount "128"]
[EventDate "2019.10.17"]
[EventType "swiss"]
[EventCountry "RUS"]
[SourceTitle "playchess.com"]
[Source "ChessBase"]
[SourceQuality "1"]
[TimeControl "180+2"]

1. Nf3 {[%emt 0:00:00]} d6 {[%emt 0:00:03]} 2. d4 {[%emt 0:00:21]} Nf6 {[%emt 0:00:02]} 3. g3 {[%emt 0:00:03]} c5 {[%emt 0:00:02]} 4. Bg2 {[%emt 0:00:07]} Nbd7 {[%emt 0:00:05]} 5. O-O {[%emt 0:00:08]} g6 {[%emt 0:00:01]} 6. b3 {[%emt 0:00:11]} Bg7 7. Bb2 O-O {[%emt 0:00:04]} 8. c4 {[%emt 0:00:03]} a6 {[%emt 0:00:02]} 9. Nc3 {[%emt 0:00:23]} Rb8 {[%emt 0:00:01]} 10. a4 {[%emt 0:00:26]} cxd4 {[%emt 0:00:20]} 11. Nxd4 {[%emt 0:00:01]} Ne5 {[%emt 0:00:01]} 12. a5 {[%emt 0:00:13]} Bd7 {[%emt 0:00:02]} 13. Nd5 {[%emt 0:00:21]} Re8 {[%emt 0:00:04]} 14. Nb6 {[%emt 0:00:03]} Nc6 {[%emt 0:00:14]} 15. Qd2 {[%emt 0:00:11]} Nxd4 {[%emt 0:00:05]} 16. Bxd4 {[%emt 0:00:02]} Bc6 {[%emt 0:00:01]} 17. Rfd1 {[%emt 0:00:08]} Bxg2 18. Kxg2 Qc7 {[%emt 0:00:04]} 19. Qd3 {[%emt 0:00:04]} Nd7 {[%emt 0:00:27]} 20. Nd5 {[%emt 0:00:10]} Qc6 {[%emt 0:00:02]} 21. Bxg7 {[%emt 0:00:06]} Kxg7 {[%emt 0:00:01]} 22. Qf3 {[%emt 0:00:09]} Ne5 {[%emt 0:00:04]} 23. Qe4 {[%emt 0:00:19]} f5 {[%emt 0:00:03]} 24. Qh4 {[%emt 0:00:13]} e6 {[%emt 0:00:09]} 25. Qf6+ {[%emt 0:00:02]} Kg8 {[%emt 0:00:00]} 26. e4 {[%emt 0:00:03]} exd5 {[%emt 0:00:04]} 27. Rxd5 {[%emt 0:00:01]} Ng4 {[%emt 0:00:12]} 28. Qc3 {[%emt 0:00:04]} fxe4 {[%emt 0:00:04]} 29. Re1 {[%emt 0:00:02]} Re5 {[%emt 0:00:07]} 30. Qd4 {[%emt 0:00:03]} Rxd5 {[%emt 0:00:09]} 31. cxd5 {[%emt 0:00:01]} Qc2 {[%emt 0:00:01]} 32. Rxe4 {[%emt 0:00:03]} Ne5 {[%emt 0:00:07]} 33. Qe3 {[%emt 0:00:01]} Rf8 {[%emt 0:00:04]} 34. Rf4 {[%emt 0:00:03]} Qd3 {[%emt 0:00:17]} 35. Rxf8+ {[%emt 0:00:01]} Kxf8 {[%emt 0:00:00]} 36. Qf4+ {[%emt 0:00:03]} Kg7 {[%emt 0:00:01]} 37. Qg5 {[%emt 0:00:02]} Qxd5+ {[%emt 0:00:01]} 38. Kf1 {[%emt 0:00:01]} Qh1+ {[%emt 0:00:08]} 39. Ke2 {[%emt 0:00:01]} Qf3+ {[%emt 0:00:01]} 40. Kf1 {[%emt 0:00:01]} Qf6 {[%emt 0:00:01]} 41. Qd2 {[%emt 0:00:01]} Nc6 {[%emt 0:00:02]} 42. Qd5 {[%emt 0:00:03]} Qe5 {[%emt 0:00:01]} 43. Qf3 {[%emt 0:00:03]} Qxa5 {[%emt 0:00:07]} 44. Qg4 {[%emt 0:00:02]} Qf5 {[%emt 0:00:02]} 45. Qh4 {[%emt 0:00:01]} Qf6 {[%emt 0:00:01]} 46. Qg4 {[%emt 0:00:01]} Ne5 {[%emt 0:00:01]} 47. Qc8 {[%emt 0:00:01]} Qe7 {[%emt 0:00:01]} 48. Qc3 {[%emt 0:00:02]} Kg8 {[%emt 0:00:01]} 49. f4 {[%emt 0:00:02]} Nf7 {[%emt 0:00:02]} 50. Kf2 {[%emt 0:00:03]} Qd7 {[%emt 0:00:08]} 51. Qd4 {[%emt 0:00:04]} Qe6 {[%emt 0:00:05]} 52. b4 {[%emt 0:00:01]} b5 {[%emt 0:00:05]} 53. Qb6 {[%emt 0:00:02]} Qc4 {[%emt 0:00:02]} 54. Qxa6 {[%emt 0:00:02]} Qc2+ {[%emt 0:00:05]} 55. Kg1 {[%emt 0:00:02]} Qd1+ {[%emt 0:00:17]} 56. Kg2 {[%emt 0:00:01]} Qe2+ {[%emt 0:00:01]} 57. Kg1 {[%emt 0:00:00]} Qe3+ {[%emt 0:00:03]} 58. Kg2 {[%emt 0:00:01]} Qd2+ {[%emt 0:00:02]} 59. Kg1 {[%emt 0:00:01]} Qd3 {[%emt 0:00:03]} 60. Qc8+ {[%emt 0:00:05]} Kg7 {[%emt 0:00:01]} 61. Qd7 {[%emt 0:00:04]} d5 {[%emt 0:00:03]} 62. Qe7 {[%emt 0:00:03]} d4 {[%emt 0:00:02]} 63. Qd7 {[%emt 0:00:02]} Qe3+ {[%emt 0:00:02]} 64. Kg2 {[%emt 0:00:01]} d3 {[%emt 0:00:01]} 0-1

[Event "RUS-ch Men Blitz 2019"]
[Site "Sochi"]
[Date "2019.10.17"]
[Round "14.9"]
[White "Kokarev, Dmitry"]
[Black "Mikhailovsky, Vladimir"]
[Result "1-0"]
[ECO "B05"]
[WhiteElo "2593"]
[BlackElo "2209"]
[Annotator "RC"]
[PlyCount "156"]
[EventDate "2019.10.17"]
[EventType "swiss"]
[EventCountry "RUS"]
[SourceTitle "playchess.com"]
[Source "ChessBase"]
[SourceQuality "1"]
[TimeControl "180+2"]

1. e4 {[%emt 0:00:00]} Nf6 {[%emt 0:00:00]} 2. e5 {[%emt 0:00:02]} Nd5 {[%emt 0:00:01]} 3. d4 {[%emt 0:00:02]} d6 {[%emt 0:00:01]} 4. Nf3 {[%emt 0:00:01]} Bg4 {[%emt 0:00:03]} 5. Be2 {[%emt 0:00:02]} e6 {[%emt 0:00:03]} 6. c4 {[%emt 0:00:02]} Nb6 {[%emt 0:00:01]} 7. O-O {[%emt 0:00:05]} Be7 {[%emt 0:00:03]} 8. h3 {[%emt 0:00:04]} Bh5 {[%emt 0:00:02]} 9. Nc3 {[%emt 0:00:03]} O-O {[%emt 0:00:02]} 10. Be3 {[%emt 0:00:03]} Nc6 {[%emt 0:00:02]} 11. exd6 {[%emt 0:00:03]} cxd6 {[%emt 0:00:02]} 12. d5 {[%emt 0:00:05]} exd5 {[%emt 0:00:15]} 13. Nxd5 {[%emt 0:00:04]} Nxd5 {[%emt 0:00:08]} 14. Qxd5 {[%emt 0:00:03]} Bg6 {[%emt 0:00:06]} 15. Rad1 {[%emt 0:00:15]} Bf6 {[%emt 0:00:20]} 16. b3 {[%emt 0:00:05]} Nb4 {[%emt 0:00:18]} 17. Qd2 {[%emt 0:00:20]} Qa5 {[%emt 0:00:07]} 18. Nd4 {[%emt 0:00:05]} Qxa2 {[%emt 0:00:49]} 19. Qxb4 {[%emt 0:00:18]} Bxd4 {[%emt 0:00:02]} 20. Rd2 {[%emt 0:00:01]} Bc5 {[%emt 0:00:00]} 21. Rxa2 {[%emt 0:00:19]} Bxb4 {[%emt 0:00:02]} 22. Bf3 {[%emt 0:00:01]} a5 {[%emt 0:00:07]} 23. Bxb7 {[%emt 0:00:05]} Rab8 {[%emt 0:00:01]} 24. Bd5 {[%emt 0:00:08]} Bc3 {[%emt 0:00:07]} 25. Rc1 {[%emt 0:00:08]} Bb4 {[%emt 0:00:30]} 26. Ba7 {[%emt 0:00:02]} Rbe8 {[%emt 0:00:17]} 27. Bb6 {[%emt 0:00:02]} Rb8 {[%emt 0:00:01]} 28. Bxa5 {[%emt 0:00:11]} Bxa5 29. Rxa5 {[%emt 0:00:01]} h6 {[%emt 0:00:18]} 30. Rc3 {[%emt 0:00:11]} Rfe8 {[%emt 0:00:02]} 31. Rb5 {[%emt 0:00:06]} Re1+ {[%emt 0:00:04]} 32. Kh2 {[%emt 0:00:01]} Rbe8 {[%emt 0:00:01]} 33. Rb7 {[%emt 0:00:08]} R8e2 {[%emt 0:00:05]} 34. Rf3 {[%emt 0:00:02]} Re7 {[%emt 0:00:04]} 35. Rxe7 {[%emt 0:00:02]} Rxe7 {[%emt 0:00:01]} 36. b4 {[%emt 0:00:01]} Re8 37. b5 {[%emt 0:00:04]} Rb8 {[%emt 0:00:05]} 38. Ra3 {[%emt 0:00:09]} Kf8 {[%emt 0:00:01]} 39. Ra7 {[%emt 0:00:02]} Ke8 {[%emt 0:00:02]} 40. Kg3 {[%emt 0:00:02]} Kf8 {[%emt 0:00:03]} 41. Kf4 {[%emt 0:00:02]} f6 {[%emt 0:00:01]} 42. Ke3 {[%emt 0:00:05]} Be8 {[%emt 0:00:01]} 43. Kd4 {[%emt 0:00:07]} g5 {[%emt 0:00:02]} 44. Ra6 {[%emt 0:00:08]} Ke7 {[%emt 0:00:02]} 45. Ra7+ {[%emt 0:00:04]} Kd8 {[%emt 0:00:02]} 46. Rh7 {[%emt 0:00:08]} h5 {[%emt 0:00:01]} 47. Bc6 {[%emt 0:00:05]} Bxc6 48. bxc6 {[%emt 0:00:01]} Rb1 {[%emt 0:00:07]} 49. c7+ {[%emt 0:00:04]} Kc8 {[%emt 0:00:00]} 50. Kd5 {[%emt 0:00:01]} Rb6 {[%emt 0:00:04]} 51. Rf7 {[%emt 0:00:05]} Kb7 {[%emt 0:00:02]} 52. Rxf6 {[%emt 0:00:05]} Kxc7 {[%emt 0:00:02]} 53. Rf7+ {[%emt 0:00:00]} Kd8 {[%emt 0:00:01]} 54. Rf5 {[%emt 0:00:02]} Rb2 {[%emt 0:00:01]} 55. Kxd6 {[%emt 0:00:04]} Rd2+ {[%emt 0:00:03]} 56. Ke6 {[%emt 0:00:02]} Kc7 57. Kf6 {[%emt 0:00:03]} g4 {[%emt 0:00:02]} 58. hxg4 {[%emt 0:00:01]} hxg4 {[%emt 0:00:01]} 59. g3 {[%emt 0:00:01]} Kd6 {[%emt 0:00:03]} 60. Kg5 {[%emt 0:00:02]} Ke6 {[%emt 0:00:04]} 61. Rf4 {[%emt 0:00:02]} Ke5 {[%emt 0:00:03]} 62. Kxg4 {[%emt 0:00:02]} Rd8 {[%emt 0:00:00]} 63. Rf5+ {[%emt 0:00:02]} Ke4 {[%emt 0:00:01]} 64. Rf4+ {[%emt 0:00:02]} Ke5 {[%emt 0:00:00]} 65. Kf3 {[%emt 0:00:01]} Rd3+ {[%emt 0:00:01]} 66. Kg2 {[%emt 0:00:03]} Rc3 {[%emt 0:00:01]} 67. Rh4 {[%emt 0:00:01]} Kf5 {[%emt 0:00:00]} 68. Rh5+ {[%emt 0:00:03]} Kg4 {[%emt 0:00:03]} 69. Rh8 {[%emt 0:00:05]} Kg5 {[%emt 0:00:05]} 70. Rc8 {[%emt 0:00:02]} Kg4 {[%emt 0:00:01]} 71. c5 {[%emt 0:00:02]} Kf5 {[%emt 0:00:01]} 72. c6 {[%emt 0:00:01]} Ke6 {[%emt 0:00:02]} 73. f4 {[%emt 0:00:03]} Rc1 {[%emt 0:00:03]} 74. f5+ {[%emt 0:00:06]} Kd6 {[%emt 0:00:05]} 75. g4 {[%emt 0:00:02]} Rc3 {[%emt 0:00:04]} 76. Kf2 {[%emt 0:00:01]} Ra3 {[%emt 0:00:02]} 77. f6 {[%emt 0:00:06]} Ke6 {[%emt 0:00:04]} 78. c7 {[%emt 0:00:02]} Kd5 1-0

[Event "RUS-ch Men Blitz 2019"]
[Site "Sochi"]
[Date "2019.10.17"]
[Round "14.13"]
[White "Volovich, Vasily"]
[Black "Nozdrachev, Vladislav"]
[Result "0-1"]
[ECO "C46"]
[WhiteElo "2120"]
[BlackElo "2494"]
[Annotator "RC"]
[PlyCount "80"]
[EventDate "2019.10.17"]
[EventType "swiss"]
[EventCountry "RUS"]
[SourceTitle "playchess.com"]
[Source "ChessBase"]
[SourceQuality "1"]
[TimeControl "180+2"]

1. e4 {[%emt 0:00:00]} e5 {[%emt 0:00:00]} 2. Nf3 {[%emt 0:00:01]} Nc6 {[%emt 0:00:00]} 3. Nc3 {[%emt 0:00:02]} Bc5 {[%emt 0:00:08]} 4. Bb5 {[%emt 0:00:14]} Nd4 {[%emt 0:00:26]} 5. Bc4 {[%emt 0:00:01]} d6 {[%emt 0:00:03]} 6. Nxd4 {[%emt 0:00:03]} exd4 {[%emt 0:00:07]} 7. Qf3 {[%emt 0:00:26]} Nf6 {[%emt 0:00:25]} 8. Nd5 {[%emt 0:00:03]} Nxd5 {[%emt 0:00:03]} 9. Bxd5 {[%emt 0:00:02]} O-O {[%emt 0:00:02]} 10. O-O {[%emt 0:00:06]} c6 {[%emt 0:00:00]} 11. Bb3 {[%emt 0:00:01]} a5 {[%emt 0:00:02]} 12. a4 {[%emt 0:00:02]} Kh8 {[%emt 0:00:11]} 13. d3 {[%emt 0:00:07]} f5 {[%emt 0:00:01]} 14. exf5 {[%emt 0:00:07]} Bxf5 {[%emt 0:00:01]} 15. Qg3 {[%emt 0:00:03]} d5 {[%emt 0:00:04]} 16. Bf4 {[%emt 0:00:14]} Qf6 {[%emt 0:00:09]} 17. Be5 {[%emt 0:00:03]} Qf7 {[%emt 0:00:08]} 18. Rae1 {[%emt 0:00:11]} Rae8 {[%emt 0:00:10]} 19. Qh4 {[%emt 0:00:16]} Bb4 {[%emt 0:00:06]} 20. Re2 {[%emt 0:00:20]} c5 {[%emt 0:00:01]} 21. f4 {[%emt 0:00:21]} c4 {[%emt 0:00:03]} 22. dxc4 {[%emt 0:00:05]} d3 {[%emt 0:00:08]} 23. cxd3 {[%emt 0:00:18]} Bxd3 {[%emt 0:00:02]} 24. Qg4 {[%emt 0:00:22]} dxc4 {[%emt 0:00:07]} 25. Bc2 {[%emt 0:00:01]} Bxc2 {[%emt 0:00:03]} 26. Bxg7+ {[%emt 0:00:08]} Qxg7 {[%emt 0:00:01]} 27. Qxg7+ {[%emt 0:00:02]} Kxg7 {[%emt 0:00:01]} 28. Rxc2 {[%emt 0:00:00]} Bc5+ {[%emt 0:00:01]} 29. Kh1 {[%emt 0:00:02]} Rxf4 {[%emt 0:00:01]} 30. Rfc1 {[%emt 0:00:03]} Ree4 {[%emt 0:00:12]} 31. g3 {[%emt 0:00:01]} Rf2 {[%emt 0:00:06]} 32. Rxc4 {[%emt 0:00:03]} Rxc4 {[%emt 0:00:01]} 33. Rxc4 {[%emt 0:00:01]} b6 {[%emt 0:00:01]} 34. Rg4+ {[%emt 0:00:04]} Kf6 {[%emt 0:00:01]} 35. Rh4 {[%emt 0:00:03]} Kg7 {[%emt 0:00:11]} 36. Rg4+ Kh8 37. h4 {[%emt 0:00:14]} Rxb2 {[%emt 0:00:02]} 38. h5 {[%emt 0:00:01]} Rb4 {[%emt 0:00:01]} 39. Rg5 {[%emt 0:00:03]} Rxa4 {[%emt 0:00:04]} 40. h6 {[%emt 0:00:01]} Bf8 {[%emt 0:00:04]} 0-1